bitfinex-derivatives/quotes_BTCF0:USTF0_20241117
["timestamp","ask_amount","ask_price","bid_price","bid_amount"]
[1731885444091,0.3608,89512.0,89497.0,0.055859]
[1731885444295,0.3608,89512.0,89507.0,0.055852]
[1731885444491,0.3608,89512.0,89511.0,0.05585]
[1731885444692,0.19676,89521.0,89505.0,0.12985588]
[1731885444887,0.001,89526.0,89524.0,0.055841]
[1731885445909,0.001,89526.0,89523.0,0.12985588]
[1731885445910,0.055841,89525.0,89513.0,0.03537005]
[1731885446088,0.055841,89525.0,89513.0,0.16522593]
[1731885446402,0.055841,89525.0,89513.0,0.12985588]
[1731885446594,0.055841,89525.0,89520.0,0.055844]
[1731885447104,0.3608,89534.0,89521.0,0.055843]
[1731885447105,0.055838,89531.0,89521.0,0.055843]
[1731885447299,0.055839,89530.0,89521.0,0.055843]
[1731885447800,0.001,89525.0,89521.0,0.055843]
[1731885448098,0.001,89525.0,89523.0,0.055842]
[1731885449398,0.00014182,89535.0,89522.0,0.12985588]
[1731885449399,0.001,89530.0,89528.0,0.055839]
[1731885449592,0.003,89530.0,89519.0,0.3608]
[1731885449794,0.003,89530.0,89521.0,0.055844]
[1731885450101,0.003,89530.0,89524.0,0.055842]
[1731885450297,0.002,89525.0,89524.0,0.055842]
[1731885450695,0.055838,89531.0,89527.0,0.05584]
[1731885450890,0.002,89530.0,89527.0,0.05584]
[1731885451208,0.002,89530.0,89519.0,0.3608]
[1731885451390,0.3608,89533.0,89516.0,0.055847]
[1731885451391,0.055844,89521.0,89516.0,0.055847]
[1731885452097,0.002,89525.0,89516.0,0.055847]
[1731885452303,0.002,89525.0,89509.0,0.055851]
[1731885452304,0.055847,89516.0,89509.0,0.055851]
[1731885452509,0.3628,89525.0,89506.0,0.00167571]
[1731885452807,0.055843,89522.0,89516.0,0.055847]
[1731885453397,0.3608,89525.0,89516.0,0.055847]
[1731885453619,0.055846,89519.0,89510.0,0.3608]
[1731885453911,0.055846,89519.0,89510.0,0.416651]
[1731885454203,0.055846,89519.0,89512.0,0.055849]
[1731885454521,0.003,89522.0,89512.0,0.055849]
[1731885454803,0.055853,89507.0,89506.0,0.00167571]
[1731885456802,0.3608,89513.0,89511.0,0.05585]
[1731885457105,0.0331,89534.0,89518.0,0.055846]
[1731885457106,0.002,89522.0,89518.0,0.055846]
[1731885457309,0.002,89522.0,89512.0,0.12985588]
[1731885457610,0.3608,89524.0,89520.0,0.055844]
[1731885457997,0.3608,89524.0,89512.0,0.12985588]
[1731885458199,0.3608,89524.0,89522.0,0.055843]
[1731885458402,0.416642,89524.0,89522.0,0.055843]
[1731885459909,0.419642,89524.0,89522.0,0.055843]
[1731885461205,0.003,89524.0,89522.0,0.055843]
[1731885462307,0.003,89524.0,89523.0,0.00419474]
[1731885462507,0.003,89524.0,89523.0,0.01466943]
[1731885462911,0.003,89524.0,89523.0,0.01466922]
[1731885463299,0.001,89524.0,89523.0,0.01466897]
[1731885463501,0.003,89524.0,89523.0,0.01466897]
[1731885463703,0.003,89524.0,89523.0,0.01047495]
[1731885463902,0.055845,89519.0,89516.0,0.055847]
[1731885464104,0.055845,89519.0,89517.0,0.01463397]
[1731885464407,0.055845,89519.0,89518.0,0.01463791]
[1731885464802,0.055845,89519.0,89518.0,0.00416227]
[1731885465430,0.055845,89519.0,89518.0,0.01463826]
[1731885465431,0.056845,89519.0,89518.0,0.01463826]
[1731885465616,0.056845,89519.0,89518.0,0.00416227]
[1731885465912,0.056845,89519.0,89506.0,0.00167571]
[1731885465913,0.055853,89507.0,89506.0,0.00167571]
[1731885466117,0.416653,89507.0,89506.0,0.0162959]
[1731885466912,0.416653,89507.0,89506.0,0.01215323]
[1731885467109,0.417653,89507.0,89506.0,0.01215323]
[1731885467915,1.18761588,89507.0,89488.0,0.00099]
[1731885468229,0.416664,89489.0,89488.0,0.00099]
[1731885468403,0.611984,89489.0,89488.0,0.00099]
[1731885468819,0.416664,89489.0,89488.0,0.00099]
[1731885469006,0.416664,89489.0,89480.0,0.00010255]
[1731885469007,0.055869,89481.0,89480.0,0.00010255]
[1731885469212,0.055869,89481.0,89461.0,0.19970765]
[1731885469213,0.55612,89481.0,89461.0,0.19970765]
[1731885469511,0.055877,89469.0,89464.0,0.19970765]
[1731885469711,0.055877,89469.0,89463.0,0.05588]
[1731885470210,0.55612,89481.0,89464.0,8.425e-05]
[1731885470416,0.55812,89481.0,89464.0,8.425e-05]
[1731885470616,0.13356596,89479.0,89464.0,8.425e-05]
[1731885470811,0.055876,89470.0,89468.0,0.055877]
[1731885471013,0.13356596,89475.0,89468.0,0.055877]
[1731885471219,0.055874,89473.0,89469.0,0.055876]
[1731885471422,0.19532,89478.0,89464.0,8.425e-05]
[1731885471609,0.055876,89470.0,89467.0,0.055877]
[1731885471809,0.055876,89470.0,89464.0,8.425e-05]
[1731885471810,0.055874,89474.0,89471.0,0.055875]
[1731885472014,0.19532,89478.0,89464.0,8.425e-05]
[1731885472215,0.055872,89476.0,89470.0,0.055876]
[1731885472421,0.055873,89474.0,89470.0,0.055876]
[1731885472611,0.055874,89473.0,89470.0,0.055876]
[1731885473012,0.055874,89473.0,89472.0,0.055875]
[1731885473416,0.002,89478.0,89474.0,0.055873]
[1731885473625,0.001,89476.0,89474.0,0.055873]
[1731885473817,0.001,89476.0,89475.0,0.3608]
[1731885474213,0.001,89476.0,89475.0,0.36490185]
[1731885474525,0.0052,89492.0,89475.0,0.36490185]
[1731885474727,0.055861,89494.0,89487.0,0.055865]
[1731885474918,0.3608,89497.0,89487.0,0.055865]
[1731885475626,0.3608,89497.0,89479.0,0.05587]
[1731885475922,0.055863,89491.0,89480.0,0.00414281]
[1731885476126,0.055863,89491.0,89481.0,0.00414281]
[1731885476322,0.00308023,89488.0,89486.0,0.055866]
[1731885476524,0.05894523,89488.0,89486.0,0.055866]
[1731885476726,0.00108023,89488.0,89486.0,0.055866]
[1731885477027,0.00308023,89488.0,89486.0,0.055866]
[1731885477425,0.00308023,89488.0,89487.0,0.00416169]
[1731885477826,0.05894523,89488.0,89487.0,0.0104797]
[1731885478229,0.05694523,89488.0,89487.0,0.0104797]
[1731885478424,0.05794523,89488.0,89487.0,0.0104797]
[1731885478623,0.05894523,89488.0,89487.0,0.0104797]
[1731885478931,0.05794523,89488.0,89487.0,0.0124797]
[1731885479428,0.05694523,89488.0,89487.0,0.0104797]
[1731885479633,0.05794523,89488.0,89487.0,0.0104797]
[1731885479824,0.05894523,89488.0,89487.0,0.0104797]
[1731885481025,0.05894523,89488.0,89487.0,0.01048002]
[1731885481237,0.05894523,89488.0,89469.0,0.055876]
[1731885481238,0.055875,89472.0,89469.0,0.055876]
[1731885481420,0.055875,89472.0,89466.0,0.02236042]
[1731885481421,0.055875,89472.0,89470.0,0.01464655]
[1731885481622,0.055875,89472.0,89466.0,0.02236042]
[1731885481623,0.3608,89481.0,89471.0,0.01464655]
[1731885481820,0.055874,89473.0,89472.0,0.01464655]
[1731885482239,0.616634,89473.0,89472.0,0.01464655]
[1731885482424,0.56076,89473.0,89465.0,0.03]
[1731885482738,0.055875,89471.0,89466.0,0.01467978]
[1731885483028,0.055876,89469.0,89467.0,0.01467978]
[1731885483231,0.56232001,89473.0,89468.0,0.01467978]
[1731885483434,0.20296,89473.0,89472.0,0.002]
[1731885483628,0.20296,89473.0,89472.0,0.01667978]
[1731885483931,0.20196,89473.0,89472.0,0.01667978]
[1731885484126,0.56276,89473.0,89472.0,0.002]
[1731885484930,0.56276,89473.0,89466.0,0.007]
[1731885484931,0.055878,89467.0,89466.0,0.009]
[1731885485133,0.055878,89467.0,89466.0,0.02368313]
[1731885485433,0.00060001,89473.0,89471.0,0.055875]
[1731885485629,0.2,89484.0,89482.0,0.055868]
[1731885485829,0.2,89484.0,89483.0,0.01048162]
[1731885488221,0.202,89484.0,89483.0,0.01048162]
[1731885488526,0.203,89484.0,89483.0,0.01048162]
[1731885489132,0.202,89484.0,89483.0,0.01048162]
[1731885489439,0.203,89484.0,89483.0,0.01048162]
[1731885490028,0.003,89484.0,89483.0,0.01048162]
[1731885491024,0.003,89484.0,89483.0,0.01465531]
[1731885491222,0.003,89484.0,89483.0,0.01048162]
[1731885491223,0.001,89484.0,89483.0,0.01048162]
[1731885491437,8.023e-05,89488.0,89487.0,0.055865]
[1731885491631,8.023e-05,89488.0,89487.0,0.07050391]
[1731885491838,8.023e-05,89488.0,89487.0,0.40574391]
[1731885492226,8.023e-05,89488.0,89487.0,0.41250205]
[1731885492940,0.00108023,89488.0,89487.0,0.41450205]
[1731885493129,0.0052,89500.0,89499.0,0.055858]
[1731885493342,0.055854,89505.0,89499.0,0.01463891]
[1731885493533,0.055854,89505.0,89500.0,0.01463891]
[1731885493723,0.37556,89507.0,89505.0,0.055854]
[1731885493925,0.37556,89507.0,89506.0,0.01048162]
[1731885494128,0.37564718,89507.0,89506.0,0.01048162]
[1731885494532,0.37564718,89507.0,89506.0,0.01472692]
[1731885494737,0.37564718,89507.0,89506.0,0.00424553]
[1731885494930,0.43150018,89507.0,89506.0,0.00424619]
[1731885495125,0.43250018,89507.0,89505.0,0.055854]
[1731885495437,0.37664718,89507.0,89506.0,0.00424604]
[1731885495649,0.37564718,89507.0,89506.0,0.00424604]
[1731885495861,0.37564718,89507.0,89506.0,0.01570502]
[1731885495862,8.718e-05,89507.0,89506.0,0.01570502]
[1731885496147,0.00064719,89507.0,89506.0,0.01470502]
[1731885496462,8.718e-05,89507.0,89506.0,0.01470279]
[1731885497431,8.718e-05,89507.0,89506.0,0.01047758]
[1731885497632,8.718e-05,89507.0,89506.0,0.01468162]
[1731885497832,8.718e-05,89507.0,89506.0,0.01568162]
[1731885498338,8.718e-05,89507.0,89506.0,0.01147758]
[1731885498527,8.718e-05,89507.0,89506.0,0.0156627]
[1731885499365,8.718e-05,89507.0,89506.0,0.01147758]
[1731885501757,8.718e-05,89507.0,89506.0,0.001]
[1731885502754,0.19256718,89507.0,89506.0,0.001]
[1731885503457,0.32613314,89507.0,89506.0,0.001]
[1731885503874,0.19256718,89507.0,89506.0,0.001]
[1731885504263,0.32713314,89507.0,89506.0,0.001]
[1731885504569,0.055859,89497.0,89493.0,0.055861]
[1731885504775,0.055859,89497.0,89494.0,0.01047893]
[1731885505069,0.055859,89497.0,89495.0,0.01047893]
[1731885505256,0.055859,89497.0,89496.0,0.01047893]
[1731885505762,0.056859,89497.0,89496.0,0.01047893]
[1731885507251,0.001,89497.0,89496.0,0.3608]
[1731885507455,0.00628718,89507.0,89506.0,0.055853]
[1731885507664,8.718e-05,89507.0,89506.0,0.01047777]
[1731885508562,0.00208718,89507.0,89506.0,0.01047777]
[1731885509061,0.00108718,89507.0,89506.0,0.0967862]
[1731885509263,0.00208718,89507.0,89506.0,0.0967862]
[1731885509549,0.00208718,89507.0,89506.0,0.1590862]
[1731885511033,0.00167674,89514.0,89506.0,0.69815382]
[1731885511230,0.00167674,89514.0,89513.0,0.08630843]
[1731885511532,0.0052,89526.0,89525.0,0.055841]
[1731885511734,0.36144,89530.0,89529.0,0.055839]
[1731885512040,0.00064,89530.0,89529.0,0.06645835]
[1731885512344,0.00013012,89537.0,89535.0,0.055835]
[1731885512544,0.00013012,89537.0,89536.0,0.01047777]
[1731885514541,0.00113012,89537.0,89536.0,0.01047777]
[1731885514742,0.00113012,89537.0,89536.0,0.3608]
[1731885514947,0.00113012,89537.0,89536.0,0.37127367]
[1731885515145,0.0052,89545.0,89537.0,0.055834]
[1731885515346,0.1904,89553.0,89544.0,0.12934806]
[1731885515544,0.1852,89553.0,89545.0,0.01047367]
[1731885515743,0.1852,89553.0,89544.0,0.12934806]
[1731885515744,0.1852,89553.0,89546.0,0.01047367]
[1731885516044,0.1852,89553.0,89551.0,0.055825]
[1731885516245,0.1852,89553.0,89552.0,0.01047367]
[1731885516847,0.00014467,89555.0,89554.0,0.055823]
[1731885517047,0.00014467,89555.0,89554.0,0.06629667]
[1731885517245,0.00014467,89555.0,89554.0,0.07053101]
[1731885517448,0.93692767,89555.0,89554.0,1e-08]
[1731885517745,0.055828,89546.0,89545.0,0.19943186]
[1731885517965,0.055834,89537.0,89536.0,0.26288831]
[1731885518648,0.055834,89537.0,89529.0,0.00014158]
[1731885518649,0.055829,89545.0,89529.0,0.00014158]
[1731885518851,0.055834,89537.0,89529.0,0.00014158]
[1731885519351,0.18516,89544.0,89529.0,0.00014158]
[1731885519853,0.055836,89535.0,89529.0,0.00014158]
[1731885520237,0.055834,89537.0,89529.0,0.00014158]
[1731885520444,0.055834,89538.0,89529.0,0.00014158]
[1731885520640,0.056834,89537.0,89529.0,0.00014158]
[1731885521150,0.001,89535.0,89529.0,0.00014158]
[1731885521357,0.001,89535.0,89534.0,0.3608]
[1731885521547,0.0052,89545.0,89535.0,0.055835]
[1731885521850,0.0052,89552.0,89544.0,0.49014806]
[1731885522046,0.00014467,89555.0,89545.0,0.03841826]
[1731885522245,0.00014467,89555.0,89552.0,0.3608]
[1731885522442,0.00014467,89555.0,89549.0,0.055826]
[1731885522851,0.00014467,89555.0,89546.0,0.0326]
[1731885522852,0.00014467,89555.0,89553.0,0.055823]
[1731885523064,0.00014467,89555.0,89551.0,0.3608]
[1731885523347,0.00014467,89555.0,89552.0,0.00703027]
[1731885523552,0.00014467,89555.0,89551.0,0.3608]
[1731885523739,0.055824,89554.0,89546.0,0.0326]
[1731885523938,0.055824,89554.0,89547.0,0.00702767]
[1731885524146,0.055824,89554.0,89546.0,0.0326]
[1731885524351,0.055824,89554.0,89547.0,0.00696087]
[1731885524651,0.00014467,89555.0,89546.0,0.0326]
[1731885524856,0.055824,89553.0,89546.0,0.0326]
[1731885525486,0.00014467,89555.0,89548.0,0.055827]
[1731885525849,0.00014467,89555.0,89546.0,0.0326]
[1731885526156,0.055824,89554.0,89536.0,0.055834]
[1731885526360,0.055829,89546.0,89537.0,0.0068486]
[1731885526551,0.055829,89546.0,89538.0,0.0068486]
[1731885526755,0.055833,89539.0,89537.0,0.0318]
[1731885527050,0.055833,89539.0,89535.0,0.16424773]
[1731885527443,0.055833,89539.0,89536.0,0.01047303]
[1731885527639,0.0052,89554.0,89532.0,0.3916]
[1731885527844,0.3608,89545.0,89535.0,0.01047314]
[1731885528044,0.3608,89545.0,89534.0,1.5]
[1731885528045,0.055834,89537.0,89536.0,0.01047314]
[1731885529547,0.416634,89537.0,89536.0,0.01047314]
[1731885530056,0.18512,89546.0,89536.0,0.1398212]
[1731885530254,0.0052,89549.0,89545.0,0.18517706]
[1731885530255,0.061027,89549.0,89545.0,0.18517706]
[1731885530550,0.055825,89552.0,89545.0,0.12934806]
[1731885531144,0.055826,89550.0,89545.0,0.18517706]
[1731885531346,0.055826,89550.0,89546.0,0.01475699]
[1731885531549,0.055828,89548.0,89547.0,0.01475699]
[1731885532249,0.055828,89548.0,89547.0,0.10095845]
[1731885534248,0.055828,89548.0,89547.0,0.01475699]
[1731885535354,0.055828,89548.0,89547.0,0.02164511]
[1731885537154,0.055828,89548.0,89547.0,0.02183375]
[1731885540147,0.055828,89548.0,89547.0,0.01484133]
[1731885540448,0.16657389,89549.0,89547.0,0.01047213]
[1731885540759,0.055838,89531.0,89529.0,0.00014158]
[1731885540947,0.055838,89531.0,89530.0,0.00419485]
[1731885541145,0.055838,89531.0,89530.0,0.01466906]
[1731885542564,0.055838,89531.0,89514.0,0.20110754]
[1731885542565,0.055848,89515.0,89514.0,0.20110754]
[1731885542861,0.055848,89515.0,89514.0,0.00167568]
[1731885543648,0.055848,89515.0,89514.0,0.00177545]
[1731885544048,0.057848,89515.0,89514.0,0.01377545]
[1731885544746,0.055848,89515.0,89514.0,0.00577545]
[1731885546162,0.055848,89515.0,89514.0,0.00177545]
[1731885547668,0.572008,89515.0,89514.0,0.00177545]
[1731885547976,0.572008,89515.0,89514.0,9.977e-05]
[1731885548757,0.572008,89515.0,89514.0,7.7e-07]
[1731885549966,0.236848,89515.0,89514.0,7.7e-07]
[1731885550365,0.055848,89515.0,89514.0,7.7e-07]
[1731885550561,0.236888,89515.0,89514.0,7.7e-07]
[1731885550865,0.3608,89517.0,89515.0,0.055847]
[1731885551068,0.416641,89526.0,89515.0,0.055848]
[1731885551266,0.416641,89526.0,89521.0,0.055843]
[1731885551477,0.416641,89526.0,89514.0,7.7e-07]
[1731885551660,0.0052,89531.0,89520.0,0.12930998]
[1731885551868,0.055836,89534.0,89529.0,0.055839]
[1731885552067,0.18104,89535.0,89529.0,0.055839]
[1731885552466,0.18104,89535.0,89521.0,0.0329]
[1731885552671,0.055843,89523.0,89522.0,0.01047458]
[1731885554069,0.001,89531.0,89523.0,0.055843]
[1731885554279,0.001,89531.0,89530.0,0.14207334]
[1731885554468,0.001,89531.0,89530.0,0.15254792]
[1731885554863,0.0052,89536.0,89533.0,0.055836]
[1731885555065,0.0052,89543.0,89534.0,0.37127458]
[1731885555264,0.00064,89548.0,89547.0,0.055828]
[1731885555265,0.00576001,89548.0,89547.0,0.055828]
[1731885555460,0.05596767,89555.0,89552.0,0.055825]
[1731885555661,0.05596767,89555.0,89553.0,0.01047268]
[1731885555871,0.05596767,89555.0,89554.0,0.01047268]
[1731885556082,0.00014467,89555.0,89554.0,0.01047268]
[1731885557669,0.00014467,89555.0,89554.0,0.04658339]
[1731885557979,0.00167587,89559.0,89558.0,0.055821]
[1731885558199,0.00167587,89559.0,89558.0,0.15252902]
[1731885558486,0.00167587,89559.0,89558.0,0.15670789]
[1731885558661,0.00167587,89559.0,89558.0,0.15670795]
[1731885559164,0.00267587,89559.0,89558.0,0.15670795]
[1731885559372,0.00267587,89559.0,89558.0,0.15252902]
[1731885559579,0.00267587,89559.0,89558.0,0.15668204]
[1731885559876,0.0052,89569.0,89559.0,0.05582]
[1731885560075,9.982e-05,89572.0,89558.0,0.43595894]
[1731885560076,9.982e-05,89572.0,89566.0,0.055815]
[1731885560277,9.982e-05,89572.0,89567.0,0.06628768]
[1731885560471,9.982e-05,89572.0,89568.0,0.01047268]
[1731885560679,9.982e-05,89572.0,89569.0,0.01047268]
[1731885560879,9.982e-05,89572.0,89570.0,0.06628568]
[1731885561070,9.982e-05,89572.0,89571.0,0.01047268]
[1731885561466,0.00109982,89572.0,89571.0,0.01047268]
[1731885563269,9.982e-05,89572.0,89571.0,0.01047268]
[1731885563977,0.055814,89569.0,89562.0,0.0305]
[1731885564178,9.982e-05,89572.0,89563.0,0.01047004]
[1731885564481,9.982e-05,89572.0,89557.0,0.3608]
[1731885564676,9.982e-05,89572.0,89559.0,0.01047067]
[1731885564677,0.055818,89564.0,89559.0,0.01047067]
[1731885564875,0.055818,89564.0,89553.0,0.0052]
[1731885564876,0.055819,89562.0,89560.0,0.01047067]
[1731885565173,0.055819,89562.0,89561.0,0.01047067]
[1731885565174,0.236779,89562.0,89561.0,0.01047067]
[1731885565372,0.05582,89559.0,89546.0,0.0052]
[1731885566080,0.39078,89559.0,89546.0,0.0052]
[1731885567185,0.055828,89547.0,89546.0,0.0052]
[1731885567381,0.055828,89547.0,89527.0,0.41664]
[1731885567382,0.83790334,89547.0,89531.0,0.0052]
[1731885567568,0.055835,89536.0,89535.0,0.01047369]
[1731885568082,0.055835,89536.0,89535.0,0.01060777]
[1731885568577,0.416635,89536.0,89535.0,0.01060777]
[1731885569179,0.751715,89536.0,89535.0,0.01460777]
[1731885569375,0.751715,89536.0,89535.0,0.00413408]
[1731885569580,0.416635,89536.0,89535.0,0.00013408]
[1731885569883,0.417635,89536.0,89535.0,0.00813408]
[1731885570372,0.752715,89536.0,89535.0,0.00813408]
[1731885570683,0.752715,89536.0,89535.0,0.00913408]
[1731885570885,0.752715,89536.0,89535.0,8e-08]
[1731885571078,1.052715,89536.0,89535.0,8e-08]
[1731885571475,0.055843,89523.0,89522.0,0.00039]
[1731885571674,0.416643,89523.0,89522.0,0.00039]
[1731885572783,0.418643,89523.0,89522.0,0.00939]
[1731885573284,0.419643,89523.0,89522.0,0.01439]
[1731885574481,0.418643,89523.0,89522.0,0.00939]
[1731885574687,0.420643,89523.0,89522.0,0.00939]
[1731885575189,0.420643,89523.0,89522.0,0.00039]
[1731885576187,0.418643,89523.0,89522.0,0.00039]
[1731885576487,0.41977246,89523.0,89522.0,0.00039]
[1731885576692,1.05489246,89523.0,89522.0,0.00039]
[1731885576892,0.055845,89519.0,89518.0,0.00012687]
[1731885577192,0.416645,89519.0,89518.0,0.00012687]
[1731885578980,0.601805,89519.0,89518.0,0.00012687]
[1731885579387,0.602805,89519.0,89518.0,0.00012687]
[1731885579795,0.3628,89519.0,89518.0,0.00012687]
[1731885579987,0.3618,89519.0,89518.0,0.00012687]
[1731885580299,0.002,89519.0,89518.0,0.00012687]
[1731885580478,0.002,89519.0,89518.0,0.05597287]
[1731885580790,0.001,89519.0,89518.0,0.06644862]
[1731885581093,0.002,89519.0,89518.0,0.06644862]
[1731885581388,0.056845,89519.0,89518.0,0.01060262]
[1731885581591,0.057845,89519.0,89518.0,0.01060262]
[1731885581995,0.056845,89519.0,89518.0,0.01060262]
[1731885582291,0.057845,89519.0,89518.0,0.01060262]
[1731885584495,0.057845,89519.0,89518.0,0.00012687]
[1731885584691,0.002,89519.0,89518.0,0.00012687]
[1731885585099,0.002,89519.0,89518.0,0.01060278]
[1731885585990,0.00012946,89523.0,89518.0,0.34572278]
[1731885586200,0.00012946,89523.0,89522.0,0.055843]
[1731885586495,0.00012946,89523.0,89522.0,0.06631891]
[1731885588292,0.00012946,89523.0,89522.0,0.01047591]
[1731885588497,0.00112946,89523.0,89522.0,0.01347591]
[1731885588692,0.36192946,89523.0,89522.0,0.01547591]
[1731885588897,0.36192946,89523.0,89522.0,0.005]
[1731885589390,0.36192946,89523.0,89522.0,0.003]
[1731885589593,0.36292946,89523.0,89522.0,0.003]
[1731885590106,0.36292946,89523.0,89522.0,0.01347567]
[1731885590603,0.36192946,89523.0,89522.0,0.01047567]
[1731885590787,0.36292946,89523.0,89522.0,0.01047567]
[1731885592109,0.055845,89519.0,89518.0,0.00012687]
[1731885592404,0.055845,89519.0,89499.0,0.05753281]
[1731885592405,0.055852,89508.0,89499.0,0.05753281]
[1731885592594,0.416652,89508.0,89507.0,0.01047771]
[1731885593996,0.417652,89508.0,89507.0,0.01547771]
[1731885594306,0.001,89508.0,89507.0,0.01547771]
[1731885594493,0.002,89508.0,89507.0,0.01847771]
[1731885594694,0.002,89508.0,89507.0,0.0226307]
[1731885595009,0.055847,89517.0,89507.0,0.0226307]
[1731885595310,0.3608,89519.0,89517.0,0.055846]
[1731885595606,0.3608,89519.0,89518.0,0.01047771]
[1731885596797,0.3608,89519.0,89518.0,0.01464767]
[1731885597005,0.3618,89519.0,89518.0,0.01464767]
[1731885597309,0.3618,89519.0,89518.0,0.01464747]
[1731885597602,0.3628,89519.0,89518.0,0.05325565]
[1731885597905,0.002,89519.0,89518.0,0.11525565]
[1731885598507,0.00012946,89523.0,89522.0,0.055843]
[1731885598699,0.00012946,89523.0,89522.0,0.52438116]
[1731885599203,0.37548,89543.0,89522.0,0.52438116]
[1731885599204,0.13361818,89545.0,89527.0,0.05584]
[1731885599407,0.00060001,89543.0,89540.0,0.055832]
[1731885599704,0.13361818,89548.0,89540.0,0.07728765]
[1731885600092,0.00012851,89547.0,89540.0,0.07728765]
[1731885600298,0.00012851,89547.0,89540.0,0.06630971]
[1731885600511,0.00267615,89541.0,89540.0,0.27747525]
[1731885600700,0.00267615,89541.0,89540.0,0.0775345]
[1731885600898,0.00367615,89541.0,89540.0,0.0775345]
[1731885601101,0.00367615,89541.0,89540.0,0.27728879]
[1731885601404,0.00367615,89541.0,89540.0,0.0775345]
[1731885601911,0.00367615,89541.0,89540.0,0.27726659]
[1731885602102,0.00367615,89541.0,89540.0,0.0775345]
[1731885602412,0.00267615,89541.0,89540.0,0.0775345]
[1731885602801,0.00267615,89541.0,89540.0,0.07062628]
[1731885603314,0.00267615,89541.0,89540.0,0.01047771]
[1731885604198,0.00267615,89541.0,89540.0,0.06630971]
[1731885604411,0.00267615,89541.0,89540.0,0.01047771]
[1731885605304,0.00267615,89541.0,89521.0,1.76658767]
[1731885605305,0.00267615,89541.0,89522.0,0.19973209]
[1731885605506,0.00267615,89541.0,89523.0,0.22120866]
[1731885605507,0.055839,89529.0,89523.0,0.22120866]
[1731885605711,0.3608,89534.0,89524.0,0.01047482]
[1731885606015,0.3608,89534.0,89525.0,0.00423123]
[1731885606223,0.055839,89529.0,89527.0,0.05584]
[1731885606404,0.3608,89534.0,89530.0,0.055838]
[1731885606607,0.055838,89532.0,89530.0,0.055838]
[1731885607113,0.055838,89532.0,89531.0,0.01468197]
[1731885607821,0.055838,89532.0,89531.0,0.01047482]
[1731885608704,0.055838,89532.0,89530.0,0.002]
[1731885609101,0.18532,89531.0,89530.0,0.002]
[1731885609504,0.18532,89531.0,89530.0,0.01247594]
[1731885609800,0.18532,89531.0,89530.0,0.01047594]
[1731885610105,0.31893818,89531.0,89512.0,0.19973209]
[1731885610306,0.3608,89522.0,89515.0,0.055848]
[1731885610508,0.3608,89522.0,89516.0,0.01462705]
[1731885610719,0.3608,89522.0,89517.0,0.01462705]
[1731885610911,0.3608,89522.0,89518.0,0.0104761]
[1731885611111,0.3608,89522.0,89512.0,0.19973209]
[1731885611112,0.055844,89521.0,89519.0,0.0104761]
[1731885611305,0.055844,89521.0,89520.0,0.0104761]
[1731885611813,0.3618,89522.0,89520.0,0.0104761]
[1731885612114,0.002,89522.0,89521.0,0.07049658]
[1731885612313,0.002,89522.0,89521.0,0.01465258]
[1731885612517,0.057843,89522.0,89521.0,0.01465258]
[1731885612726,0.055845,89519.0,89507.0,0.1998422]
[1731885613013,0.055862,89492.0,89490.0,0.00076]
[1731885613215,0.055862,89492.0,89488.0,0.26658767]
[1731885613216,0.055868,89483.0,89480.0,0.00068]
[1731885613418,0.055864,89489.0,89479.0,0.05659]
[1731885613620,0.18536,89490.0,89479.0,0.05587]
[1731885613806,0.055867,89484.0,89483.0,0.055868]
[1731885614005,0.055867,89484.0,89483.0,0.05600663]
[1731885614204,0.055866,89486.0,89483.0,0.05600663]
[1731885614617,0.055866,89486.0,89484.0,0.055867]
[1731885614917,0.243223,89490.0,89488.0,0.055864]
[1731885616208,0.246223,89490.0,89488.0,0.055864]
[1731885616604,0.18836,89490.0,89483.0,0.00013863]
[1731885616805,0.055866,89486.0,89484.0,0.055867]
[1731885618341,0.18836,89490.0,89488.0,0.055864]
[1731885618523,0.18836,89490.0,89483.0,0.00013863]
[1731885618721,0.055866,89485.0,89483.0,0.00013863]
[1731885619838,0.059866,89485.0,89483.0,0.00013863]
[1731885620251,0.004,89485.0,89483.0,0.05600563]
[1731885620636,0.004,89485.0,89484.0,0.3608]
[1731885621144,0.1854,89505.0,89503.0,0.055855]
[1731885621340,0.055851,89510.0,89507.0,0.055852]
[1731885621648,0.055849,89513.0,89508.0,0.08628251]
[1731885621960,0.1854,89519.0,89507.0,0.055852]
[1731885622249,0.055851,89510.0,89507.0,0.055852]
[1731885622432,0.055855,89503.0,89501.0,0.08628251]
[1731885622655,0.055856,89502.0,89500.0,0.118056]
[1731885622826,0.42032868,89509.0,89506.0,0.055853]
[1731885623231,0.42032868,89509.0,89507.0,0.01047731]
[1731885623427,0.42032868,89509.0,89508.0,0.01047731]
[1731885623428,0.42232868,89509.0,89508.0,0.01047731]
[1731885623630,0.42032868,89509.0,89508.0,0.01047731]
[1731885624739,0.36447668,89509.0,89508.0,0.06632931]
[1731885625044,0.00367668,89509.0,89508.0,0.06632931]
[1731885625536,0.00367668,89509.0,89508.0,0.01047731]
[1731885625743,0.00567668,89509.0,89508.0,0.01047731]
[1731885626429,0.00167668,89509.0,89508.0,0.09675982]
[1731885626638,0.00567668,89509.0,89508.0,0.09675982]
[1731885627128,0.00367668,89509.0,89508.0,0.09675982]
[1731885627314,0.00367668,89509.0,89508.0,0.10093462]
[1731885627315,0.00567668,89509.0,89508.0,0.10093462]
[1731885627515,0.00567668,89509.0,89508.0,0.09675982]
[1731885627826,0.00467668,89509.0,89508.0,0.09875982]
[1731885628024,0.003,89509.0,89508.0,0.01247731]
[1731885628727,0.001,89509.0,89508.0,0.01247731]
[1731885628920,0.001,89509.0,89508.0,0.004]
[1731885629125,0.001,89509.0,89508.0,0.01447709]
[1731885629320,0.3608,89519.0,89508.0,0.01247709]
[1731885629321,0.055851,89510.0,89508.0,0.01247709]
[1731885629513,0.001,89509.0,89508.0,0.004]
[1731885629919,0.055855,89504.0,89499.0,0.055858]
[1731885630226,0.004,89509.0,89493.0,0.0052]
[1731885630430,0.055856,89502.0,89500.0,0.055857]
[1731885630614,0.055852,89508.0,89493.0,0.0052]
[1731885630815,0.055854,89506.0,89501.0,0.055856]
[1731885631030,0.004,89509.0,89501.0,0.055856]